bitfinex/quotes_SOLUSD_20251208
["timestamp","ask_amount","ask_price","bid_price","bid_amount"]
[1765163635279,26.13110347,133.94,133.9,1e-08]
[1765163635479,0.67,133.92,133.9,0.71000001]
[1765163635686,26.13110347,133.94,133.9,0.71000001]
[1765163635890,0.67,133.93,133.9,0.71000001]
[1765163636298,26.13110347,133.94,133.9,0.71000001]
[1765163636500,26.80110347,133.94,133.9,0.71000001]
[1765163640116,7.46602956,133.94,133.91,2.17709697]
[1765163640312,7.46602956,133.94,133.9,0.71000001]
[1765163640493,26.13110347,133.94,133.9,0.71000001]
[1765163640693,26.13110347,133.94,133.9,2.88709698]
[1765163640915,26.13110347,133.94,133.91,0.71]
[1765163641409,26.80110347,133.94,133.91,0.71]
[1765163641614,26.13110347,133.94,133.91,0.71]
[1765163643989,26.80110347,133.94,133.91,0.71]
[1765163650306,16.308864,133.91,133.9,1e-08]
[1765163650515,27.95671442,133.91,133.9,1e-08]
[1765163650713,28.62671442,133.91,133.9,1e-08]
[1765163651325,36.0944166,133.91,133.9,1e-08]
[1765163656043,35.4244166,133.91,133.9,1e-08]
[1765163656333,36.0944166,133.91,133.9,1e-08]
[1765163656943,32.01656618,133.91,133.9,1e-08]
[1765163657245,32.68656618,133.91,133.9,1e-08]
[1765163657546,36.0944166,133.91,133.9,1e-08]
[1765163661440,32.68656618,133.91,133.9,1e-08]
[1765163661647,32.68656618,133.91,133.9,0.71000001]
[1765163661648,32.01656618,133.91,133.9,0.71000001]
[1765163661851,7.46770218,133.91,133.9,0.71000001]
[1765163663544,7.46714456,133.92,133.9,0.71000001]
[1765163667960,8.14714456,133.92,133.9,0.71000001]
[1765163671630,7.46714456,133.92,133.9,0.71000001]
[1765163671824,8.14714456,133.92,133.9,0.71000001]
[1765163672045,7.46714456,133.92,133.9,0.71000001]
[1765163675844,16.308864,133.94,133.9,4.11785043]
[1765163675845,7.46610187,133.94,133.9,4.11785043]
[1765163676253,7.46610187,133.94,133.91,0.71]
[1765163677664,11.64785042,133.98,133.92,3.40785042]
[1765163678155,12.32785042,133.98,133.93,0.71]
[1765163678746,8.14456623,133.97,133.93,0.71]
[1765163679358,7.46456623,133.97,133.93,0.71]
[1765163679955,8.14456623,133.97,133.93,0.71]
[1765163681359,3.40785042,133.94,133.9,1e-08]
[1765163681660,3.40785042,133.93,133.9,1e-08]
[1765163681963,4.08785042,133.93,133.9,0.71000001]
[1765163682563,11.55498684,133.93,133.9,0.71000001]
[1765163683743,10.87498684,133.93,133.9,0.71000001]
[1765163684357,11.55498684,133.93,133.9,0.71000001]
[1765163684852,7.46713642,133.93,133.9,0.71000001]
[1765163685383,3.40785042,133.92,133.9,0.71000001]
[1765163685971,11.55498684,133.93,133.9,0.71000001]
[1765163689369,0.68,133.92,133.9,1e-08]
[1765163689746,29.54145439,133.93,133.9,0.71000001]
[1765163690084,30.22145439,133.93,133.9,0.71000001]
[1765163691271,7.46769543,133.92,133.9,0.71000001]
[1765163695784,26.13305457,133.93,133.9,0.71000001]
[1765163695953,26.82305457,133.93,133.9,0.71000001]
[1765163698493,26.13305457,133.93,133.9,0.71000001]
[1765163698661,7.46770218,133.91,133.9,0.71000001]
[1765163700087,7.46714456,133.92,133.9,0.71000001]
[1765163700784,10.87499498,133.92,133.9,1e-08]
[1765163700959,11.56499498,133.92,133.9,1e-08]
[1765163701373,0.69,133.91,133.9,1e-08]
[1765163702293,8.15770218,133.91,133.9,1e-08]
[1765163702475,7.46770218,133.91,133.9,1e-08]
[1765163703464,8.15770218,133.91,133.9,1e-08]
[1765163704770,11.5655526,133.91,133.9,1e-08]
[1765163705590,8.15770218,133.91,133.9,1e-08]
[1765163706896,8.16770218,133.91,133.9,1e-08]
[1765163708898,10.35003372,133.91,133.9,1e-08]
[1765163710196,8.16770218,133.91,133.9,1e-08]
[1765163712786,10.35003372,133.91,133.9,1e-08]
[1765163713190,22.15119195,133.91,133.9,1e-08]
[1765163722608,30.88051811,133.91,133.9,1e-08]
[1765163724336,8.80994492,133.88,133.87,1e-08]
[1765163724626,19.21227646,133.88,133.87,1e-08]
[1765163724793,19.91227646,133.88,133.87,1e-08]
[1765163725418,22.9046086,133.88,133.87,1e-08]
[1765163728715,30.37398416,133.88,133.87,1e-08]
[1765163733036,21.45398416,133.88,133.87,0.66000001]
[1765163733406,19.27165262,133.88,133.87,0.66000001]
[1765163734025,21.45398416,133.88,133.87,1e-08]
[1765163735141,21.45398416,133.88,133.87,0.66000001]
[1765163735142,7.46937556,133.88,133.87,0.66000001]
[1765163735341,15.70937556,133.88,133.87,0.66000001]
[1765163735507,7.46937556,133.88,133.87,0.66000001]
[1765163735708,7.46895898,133.89,133.87,0.66000001]
[1765163736935,26.14020019,133.9,133.87,0.66000001]
[1765163741123,28.32253173,133.9,133.87,0.66000001]
[1765163744427,2.18233154,133.88,133.87,1e-08]
[1765163745332,2.88233154,133.88,133.87,1e-08]
[1765163745734,10.3517071,133.88,133.87,1e-08]
[1765163748828,9.6517071,133.88,133.87,1e-08]
[1765163751134,10.1517071,133.88,133.87,1e-08]
[1765163752847,7.96937556,133.88,133.87,1e-08]
[1765163753350,7.96937556,133.88,133.87,0.71000001]
[1765163753746,7.46937556,133.88,133.87,0.71000001]
[1765163758540,34.36020019,133.9,133.87,0.71000001]
[1765163761765,35.08020019,133.9,133.87,0.71000001]
[1765163762542,7.4678809,133.91,133.88,0.71]
[1765163762742,8.94,133.9,133.87,0.71000001]
[1765163763352,8.22,133.9,133.87,0.71000001]
[1765163764469,15.68860178,133.9,133.87,0.71000001]
[1765163765465,8.22,133.92,133.89,2.18233154]
[1765163765768,7.46673792,133.93,133.9,2.89233154]
[1765163766167,7.46673792,133.93,133.91,0.71]
[1765163766465,8.12673792,133.93,133.91,0.71]
[1765163768062,7.46673792,133.93,133.91,0.71]
[1765163772463,8.12673792,133.93,133.89,3.40821414]
[1765163772661,0.66,133.92,133.89,0.71]
[1765163772863,8.88,133.92,133.89,0.71]
[1765163773257,8.12775625,133.91,133.89,0.71]
[1765163774850,0.66,133.9,133.87,66.31821415]
[1765163775054,0.66,133.9,133.87,0.71000001]
[1765163775261,8.88,133.9,133.87,0.71000001]
[1765163775444,7.46836824,133.9,133.87,4.11821415]
[1765163775647,39.04354569,133.93,133.89,3.40821414]
[1765163775648,15.68714456,133.92,133.89,3.40821414]
[1765163775844,15.68714456,133.92,133.9,3.40821414]
[1765163776056,7.46676198,133.93,133.9,3.40821414]
[1765163776264,7.46676198,133.93,133.91,0.71]
[1765163776461,7.46617121,133.94,133.91,4.11821414]
[1765163776657,7.46617121,133.94,133.92,0.71]
[1765163777359,7.46617121,133.94,133.92,4.11821414]
[1765163777561,7.46617121,133.94,133.93,0.71]
[1765163782459,8.22,133.98,133.93,4.11821414]
[1765163782658,0.69,134.04,133.97,23.12529228]
[1765163782857,7.46139169,134.03,134.01,3.40821414]
[1765163783378,7.46139169,134.03,134.01,4.05821414]
[1765163783679,0.2,134.05,134.01,4.05821414]
[1765163784557,7.46084381,134.04,134.01,4.05821414]
[1765163784755,7.46105509,134.03,134.01,4.05821414]
[1765163785182,7.66157289,134.02,134.01,3.40821414]
[1765163785376,7.66157289,134.02,134.01,4.05821414]
[1765163785581,7.66157289,134.02,134.01,3.40821414]
[1765163787174,7.66157289,134.02,133.99,4.05821414]
[1765163787562,7.66157289,134.02,134.0,4.05821414]
[1765163787764,0.2,134.02,134.01,3.40821414]
[1765163788079,0.2,134.02,134.01,4.05821414]
[1765163788682,0.2,134.02,134.01,0.65]
[1765163789659,7.66157289,134.02,134.01,0.65]
[1765163790072,7.66157289,134.02,134.0,65.60821414]
[1765163790270,8.35157289,134.02,133.98,12.27821414]
[1765163790470,8.35157289,134.02,133.99,0.65]
[1765163790675,7.66157289,134.02,133.99,0.65]
[1765163791188,8.35157289,134.02,133.99,0.65]
[1765163791385,3.40821414,134.0,133.93,18.66642833]
[1765163791594,4.09821414,134.01,133.96,0.65]
[1765163791967,27.00550513,134.02,133.97,3.40821414]
[1765163792168,27.00550513,134.02,133.98,0.65]
[1765163793892,7.46268656,134.0,133.98,0.65]
[1765163795276,7.46212969,134.01,133.98,0.65]
[1765163795679,7.66173402,134.02,133.99,3.40821414]
[1765163796066,7.66173402,134.02,133.97,11.62821414]
[1765163796271,0.69,134.01,133.98,0.65]
[1765163797272,7.46268656,134.0,133.98,0.65]
[1765163797681,7.46228616,134.01,133.98,0.65]
[1765163797886,7.46228616,134.01,133.98,4.05821414]
[1765163798384,7.46228616,134.01,133.99,0.65]
[1765163798701,7.6617278,134.02,133.99,0.65]
[1765163798899,8.3517278,134.02,133.99,0.65]
[1765163799196,0.69,134.01,133.98,0.65]
[1765163799404,7.46268656,134.0,133.98,0.65]
[1765163801009,7.46225992,134.01,133.98,0.65]
[1765163802805,0.89,134.02,133.99,3.40821414]
[1765163802806,0.2,134.02,133.99,3.40821414]
[1765163803008,0.2,134.02,134.0,3.40821414]
[1765163803613,0.2,134.02,134.01,0.65]
[1765163804961,0.2,134.02,134.01,4.05821414]
[1765163806480,0.2,134.02,134.01,0.65]
[1765163810400,0.2,134.02,134.01,8.11212969]
[1765163811214,0.2,134.02,134.01,11.52034383]
[1765163811413,0.2,134.02,134.01,73.72034383]
[1765163816697,0.2,134.02,134.01,62.85]
[1765163816908,0.2,134.02,134.01,62.2]
[1765163817113,0.2,134.02,134.01,73.76034383]
[1765163819321,0.2,134.02,134.01,8.15212969]
[1765163820823,0.2,134.02,134.01,11.56034383]
[1765163822804,0.2,134.02,134.0,73.82821414]
[1765163823100,0.2,134.02,134.01,12.90815906]
[1765163823314,0.2,134.05,134.02,8.80994492]
[1765163823512,0.2,134.05,134.04,3.40821414]
[1765163824023,0.2,134.05,134.04,4.09821414]
[1765163824400,0.2,134.05,134.04,4.10821414]
[1765163825502,0.2,134.05,134.04,11.5686737]
[1765163826418,0.88,134.05,134.02,11.62821414]
[1765163826596,0.88,134.05,134.03,3.40821414]
[1765163826802,0.88,134.05,134.02,12.32821414]
[1765163827025,0.88,134.05,134.02,19.08967213]
[1765163827730,0.68,134.04,134.0,11.5706978]
[1765163828022,0.68,134.04,134.01,3.40821414]
[1765163828800,0.68,134.04,134.0,11.62821414]
[1765163829808,7.46101619,134.03,134.0,11.62821414]
[1765163830607,8.14101619,134.03,134.0,11.62821414]
[1765163830809,0.68,134.02,134.0,10.39763094]
[1765163831324,0.68,134.03,134.0,11.09763094]
[1765163832730,0.68,134.03,134.01,2.17763094]
[1765163835337,8.14103267,134.03,134.0,11.09763094]
[1765163836028,8.14062609,134.04,134.01,2.87763094]
[1765163836338,8.14062609,134.04,134.0,18.56030805]
[1765163836513,0.68,134.03,134.0,10.34030805]
[1765163836715,0.68,134.03,134.0,18.56030805]
[1765163837449,0.68,134.03,134.01,2.17763094]
[1765163837618,0.68,134.03,134.0,18.56030805]
[1765163838853,8.14062609,134.04,134.01,2.87763094]
[1765163839033,0.68,134.03,134.01,2.17763094]
[1765163840837,0.92,134.05,134.02,2.85763094]
[1765163841042,0.92,134.05,134.02,11.07763094]
[1765163841447,0.92,134.05,134.02,18.53915665]
[1765163842438,0.92,134.05,134.02,16.36152571]
[1765163844647,0.2,134.05,134.03,0.68]
[1765163844845,0.2,134.05,134.03,2.85763094]
[1765163845137,0.2,134.05,134.04,2.85763094]
[1765163845537,0.2,134.05,134.04,10.3180905]
[1765163845737,0.2,134.05,134.04,18.5380905]
[1765163846565,0.2,134.05,134.04,89.54803542]
[1765163847229,0.2,134.05,134.04,80.7380905]
[1765163847435,0.2,134.05,134.04,73.27763094]
[1765163847734,0.2,134.05,134.04,80.7380905]
[1765163847931,0.2,134.05,134.04,73.27763094]
[1765163848464,0.2,134.05,134.04,80.7380905]
[1765163850545,0.2,134.05,134.04,11.07763094]
[1765163852759,0.2,134.05,134.04,18.5380905]
[1765163854944,0.2,134.05,134.04,80.7380905]
[1765163857356,0.92,134.05,134.04,70.42]
[1765163857539,0.2,134.05,134.04,70.42]
[1765163857739,0.2,134.05,134.04,72.59763094]
[1765163859553,0.2,134.05,134.04,80.7380905]
[1765163866267,0.2,134.05,134.04,80.0580905]
[1765163866451,0.2,134.05,134.04,80.7380905]
[1765163866764,0.2,134.05,134.04,80.0580905]
[1765163867167,0.2,134.05,134.04,80.7380905]
[1765163872769,0.87,134.05,134.04,2.17763094]
[1765163872966,0.87,134.05,134.03,17.85844013]
[1765163873276,0.87,134.05,134.04,7.46045956]
[1765163875054,0.87,134.05,134.04,9.6380905]
[1765163875256,0.2,134.05,134.04,9.6380905]
[1765163875572,0.2,134.05,134.04,10.3480905]
[1765163878756,0.2,134.05,134.04,72.5480905]
[1765163880599,0.2,134.06,134.04,99.84453036]
[1765163880755,0.2,134.07,134.06,8.80994492]
[1765163880955,0.2,134.07,134.06,10.98757586]
[1765163881268,0.2,134.07,134.06,11.69757586]
[1765163881877,0.2,134.07,134.06,19.15692242]
[1765163884759,0.2,134.07,134.06,81.35692242]
[1765163885681,0.91,134.14,134.09,16.308864]
[1765163885884,0.91,134.14,134.13,2.17763094]
[1765163886381,0.2,134.14,134.13,2.17763094]
[1765163887362,0.91,134.14,134.13,2.17763094]
[1765163887971,0.91,134.14,134.13,9.6330846]
[1765163890698,0.91,134.14,134.13,10.85061008]
[1765163894295,0.2,134.14,134.13,11.53061008]
[1765163895015,0.2,134.14,134.13,10.85061008]
[1765163896464,0.2,134.14,134.13,73.05061008]
[1765163896994,0.91,134.14,134.13,62.2]
[1765163897788,8.36489786,134.14,134.13,62.2]
[1765163897965,8.36489786,134.14,134.1,8.22]
[1765163898172,0.71,134.13,134.1,8.22]
[1765163898674,0.71,134.13,134.07,3.39515642]
[1765163898675,7.45600954,134.12,134.07,3.39515642]
[1765163899074,0.71,134.11,134.07,3.39515642]
[1765163899393,0.71,134.11,134.06,35.38316897]
[1765163899779,0.71,134.11,134.06,19.07430497]
[1765163900109,0.71,134.11,134.06,35.38316897]
[1765163900589,0.71,134.11,134.06,19.07430497]
[1765163900792,7.45712155,134.1,134.06,19.07430497]
[1765163901178,0.72,134.09,134.06,19.07430497]
[1765163901494,0.72,134.09,134.07,3.39515642]
[1765163903273,0.72,134.09,134.07,10.85389918]
[1765163903474,0.72,134.09,134.08,3.39515642]
[1765163903988,0.72,134.09,134.07,10.85389918]
[1765163905400,0.72,134.09,134.07,73.05389918]
[1765163906102,0.72,134.09,134.07,65.59515642]
[1765163907803,0.72,134.09,134.07,62.2]
[1765163908602,0.72,134.09,134.07,65.59515642]
[1765163909002,7.45596193,134.13,134.08,3.39515642]
[1765163909190,0.72,134.12,134.09,3.39515642]
[1765163909392,0.72,134.12,134.1,11.61515642]
[1765163909687,7.65501712,134.14,134.11,3.39515642]
[1765163909688,0.92,134.14,134.11,3.39515642]
[1765163910094,0.92,134.14,134.12,11.61515642]
[1765163910288,0.2,134.14,134.12,11.61515642]
[1765163910488,0.92,134.14,134.12,11.61515642]
[1765163912604,0.92,134.14,134.13,3.39515642]
[1765163913110,0.2,134.14,134.13,3.39515642]
[1765163913780,0.2,134.14,134.13,10.85061008]
[1765163915295,0.2,134.14,134.13,11.55061008]
[1765163915481,0.2,134.14,134.13,36.669419]
[1765163918305,0.92,134.14,134.13,78.508864]
[1765163918604,0.2,134.14,134.13,90.12402042]
[1765163918777,0.92,134.14,134.13,90.12402042]
[1765163918984,0.92,134.14,134.12,11.59515642]
[1765163919201,0.72,134.13,134.12,11.59515642]
[1765163920406,0.72,134.13,134.11,19.70402042]
[1765163920611,0.72,134.13,134.11,27.16049811]
[1765163925111,0.72,134.13,134.1,19.0521484]
[1765163926488,0.72,134.13,134.11,3.39515642]
[1765163929007,0.72,134.13,134.1,15.65699198]
[1765163929008,0.72,134.13,134.1,19.0521484]
[1765163930212,0.72,134.13,134.1,19.7521484]
[1765163930412,0.72,134.13,134.11,3.39515642]
[1765163930586,0.72,134.13,134.1,19.7521484]
[1765163930787,0.72,134.13,134.1,19.0521484]
[1765163931403,0.72,134.13,134.11,3.39515642]
[1765163934112,0.72,134.13,134.1,19.7521484]
[1765163934413,0.72,134.13,134.11,10.85170716]
[1765163934590,0.2,134.14,134.12,11.59515642]
[1765163934916,0.2,134.14,134.12,8.2]
[1765163934917,0.9,134.14,134.12,8.2]
[1765163935093,0.9,134.14,134.12,70.4]
[1765163935502,0.7,134.13,134.12,70.4]
[1765163939922,8.15545366,134.13,134.12,70.4]
[1765163940418,8.15545366,134.13,134.12,62.2]
[1765163940607,11.55061008,134.13,134.12,62.2]
[1765163941117,11.55061008,134.13,134.09,70.4]
[1765163941301,0.66,134.12,134.09,70.4]
[1765163943419,8.11624812,134.12,134.09,70.4]
[1765163944134,7.45565857,134.13,134.1,4.10515642]
[1765163944312,7.45565857,134.13,134.11,3.39515642]
[1765163944502,8.11565857,134.13,134.11,3.39515642]
[1765163945625,0.66,134.12,134.11,3.39515642]
[1765163946199,0.66,134.12,134.1,3.39515642]
[1765163947023,0.66,134.12,134.1,62.2]
[1765163947943,8.11630947,134.12,134.09,62.2]
[1765163948216,8.11630947,134.12,134.07,11.61515642]
[1765163948419,0.66,134.11,134.07,73.81515642]
[1765163948998,7.45712155,134.1,134.08,3.39515642]
[1765163949410,0.66,134.09,134.07,73.81515642]
[1765163949723,0.66,134.09,134.07,70.42]
[1765163950025,0.66,134.09,134.07,73.81515642]
[1765163950224,0.66,134.09,134.08,3.39515642]
[1765163950607,7.45712155,134.1,134.08,3.39515642]
[1765163950608,0.66,134.1,134.08,3.39515642]
[1765163950926,7.45669166,134.11,134.09,10.39496594]
[1765163951230,8.11545366,134.13,134.1,2.17496594]
[1765163951408,8.11545366,134.13,134.11,2.17496594]
[1765163952123,0.66,134.12,134.11,2.17496594]
[1765163952307,8.11545366,134.13,134.11,2.17496594]
[1765163953517,0.66,134.12,134.11,2.17496594]
[1765163953909,7.45545366,134.13,134.11,2.17496594]
[1765163954118,8.11545366,134.13,134.11,2.17496594]
[1765163954625,0.66,134.12,134.11,2.17496594]
[1765163956035,8.11600954,134.12,134.11,2.17496594]
[1765163956211,8.11600954,134.12,134.1,64.37496594]
[1765163959225,7.45552509,134.13,134.11,2.17496594]
[1765163959534,8.11552509,134.13,134.11,2.17496594]
[1765163959911,8.11552509,134.13,134.11,10.39496594]
[1765163961522,8.11552509,134.13,134.11,8.22]
[1765163961915,8.11552509,134.13,134.11,70.42]
[1765163968838,8.13552509,134.13,134.11,70.42]
[1765163971936,7.45552509,134.13,134.11,70.42]
[1765163972238,8.13552509,134.13,134.11,70.42]
[1765163973236,0.2,134.14,134.12,0.69]
[1765163973534,0.2,134.14,134.12,2.86496594]
[1765163973720,0.2,134.14,134.12,65.06496594]
[1765163973925,0.2,134.14,134.13,0.69]
[1765163974329,0.2,134.14,134.13,11.08496594]
[1765163977137,0.2,134.14,134.13,8.22]
[1765163979636,0.2,134.14,134.13,70.42]
[1765163981651,0.2,134.14,134.13,73.28496594]
[1765163986550,0.2,134.14,134.13,80.7404196]
[1765163986767,0.2,134.16,134.13,27.35036452]
[1765163987059,0.2,134.16,134.15,10.98491086]
[1765163987240,0.2,134.16,134.15,19.18491086]
[1765163987556,0.2,134.16,134.15,27.32662212]
[1765163988332,0.2,134.19,134.15,27.32662212]
[1765163988654,0.2,134.19,134.18,2.17496594]
[1765163988859,0.2,134.19,134.18,10.37496594]
[1765163989052,0.2,134.19,134.18,27.32758637]
[1765163989356,0.2,134.19,134.18,34.77807985]
[1765163990359,0.2,134.19,134.18,36.95304579]
[1765163990540,0.2,134.19,134.18,34.77807985]
[1765163990940,0.2,134.19,134.18,43.47794361]
[1765163991437,0.2,134.21,134.2,16.308864]
[1765163991646,0.2,134.21,134.2,26.68382994]
[1765163991961,0.2,134.21,134.2,10.37496594]
[1765163992259,0.2,134.21,134.2,11.05496594]
[1765163994061,0.2,134.21,134.2,18.50653076]
[1765163994472,0.2,134.21,134.2,80.70653076]
[1765163995465,0.2,134.21,134.2,80.02653076]
[1765163995672,0.2,134.21,134.2,72.57496594]
[1765163995849,0.87,134.21,134.2,72.57496594]
[1765163997065,0.87,134.21,134.2,62.2]
[1765163997768,0.2,134.21,134.2,65.08496594]
[1765163997971,0.2,134.21,134.2,62.2]
[1765163998156,0.2,134.21,134.2,65.08496594]
[1765163998671,0.2,134.21,134.2,72.53653076]
[1765163999172,0.2,134.21,134.2,71.82653076]
[1765164000271,0.2,134.21,134.2,64.37496594]
[1765164000763,0.88,134.21,134.2,64.37496594]
[1765164000959,0.2,134.21,134.2,64.37496594]
[1765164001360,0.88,134.21,134.2,62.2]
[1765164001877,0.88,134.21,134.18,72.57496594]
[1765164001878,8.33100961,134.21,134.18,72.57496594]
[1765164002078,0.68,134.2,134.18,72.57496594]
[1765164002277,0.68,134.2,134.17,64.37496594]
[1765164002278,8.13168739,134.2,134.17,64.37496594]
[1765164002453,8.13168739,134.2,134.17,72.57496594]
[1765164002654,0.68,134.19,134.17,72.57496594]
[1765164004278,7.65101143,134.21,134.18,2.17496594]
[1765164004479,0.68,134.2,134.18,2.17496594]
[1765164005090,0.68,134.2,134.17,72.57496594]
[1765164006179,0.68,134.2,134.18,2.17496594]
[1765164006372,0.2,134.21,134.19,10.37496594]
[1765164006682,0.2,134.21,134.2,2.17496594]
[1765164007672,0.2,134.21,134.2,64.37496594]
[1765164007875,0.88,134.21,134.2,64.37496594]
[1765164008104,0.88,134.21,134.18,2.17496594]
[1765164008105,8.33100961,134.21,134.18,2.17496594]
[1765164008393,0.68,134.2,134.19,8.2]
[1765164008594,0.68,134.2,134.17,18.48382994]
[1765164008781,0.68,134.2,134.18,8.2]
[1765164009372,0.68,134.2,134.18,10.37496594]
[1765164010169,0.68,134.2,134.18,8.2]
[1765164010885,8.13159438,134.2,134.18,8.2]
[1765164011611,0.2,134.21,134.19,2.88496594]
[1765164011767,0.2,134.21,134.2,10.37496594]
[1765164012291,0.88,134.21,134.2,8.2]
[1765164012483,0.2,134.21,134.2,8.2]
[1765164012876,0.2,134.21,134.2,11.59244568]
[1765164013083,0.2,134.21,134.2,8.2]
[1765164013779,8.33109862,134.21,134.18,62.2]
[1765164013982,0.88,134.21,134.18,62.2]
[1765164014173,0.68,134.2,134.18,62.2]
[1765164015595,0.2,134.21,134.19,12.30244568]
[1765164015767,0.2,134.21,134.19,19.75453591]
[1765164018290,0.2,134.21,134.19,81.95453591]
[1765164018994,0.2,134.21,134.2,4.10244568]
[1765164019985,0.2,134.21,134.2,11.5540105]
[1765164020593,0.2,134.21,134.2,73.7540105]
[1765164020889,0.2,134.21,134.2,70.36156482]
[1765164021384,0.2,134.21,134.2,73.7540105]
[1765164022269,0.2,134.21,134.2,70.36156482]
[1765164025290,0.2,134.21,134.2,73.7540105]
[1765164026405,0.2,134.21,134.2,78.56156482]
[1765164026586,0.88,134.21,134.2,70.4]
[1765164026997,0.2,134.21,134.2,70.4]
[1765164029492,0.2,134.21,134.2,77.85156482]
[1765164029995,0.2,134.21,134.2,81.9540105]
[1765164030394,0.2,134.21,134.2,90.76395542]
[1765164030974,0.2,134.21,134.2,93.74669282]
[1765164036599,0.2,134.21,134.2,109.34555682]
[1765164036904,0.2,134.21,134.2,211.85555682]
[1765164040405,0.2,134.21,134.2,208.87281942]
[1765164040804,0.2,134.21,134.2,199.3528745]
[1765164040985,0.2,134.21,134.2,200.0628745]
[1765164041486,0.2,134.21,134.2,191.8628745]
[1765164041694,0.2,134.21,134.2,85.96042882]
[1765164041880,0.2,134.21,134.2,94.16042882]
[1765164042081,0.2,134.21,134.2,97.5528745]
[1765164042498,0.2,134.21,134.2,89.3528745]
[1765164042699,0.2,134.21,134.2,97.5528745]
[1765164043013,0.2,134.21,134.2,98.2628745]
[1765164043506,0.1,134.23,134.21,8.80994492]
[1765164043707,0.1,134.24,134.23,8.80994492]
[1765164043897,0.1,134.27,134.23,12.2023906]
[1765164044205,0.1,134.27,134.26,3.39244568]
[1765164044408,0.1,134.27,134.26,11.59244568]
[1765164044712,0.1,134.27,134.26,12.30244568]
[1765164044897,0.1,134.27,134.26,19.04068044]
[1765164045127,0.78,134.27,134.26,19.04068044]
[1765164045414,0.1,134.27,134.26,19.04068044]
[1765164046515,0.1,134.27,134.26,19.75068044]
[1765164047105,0.1,134.27,134.26,31.95307104]
[1765164052629,0.1,134.28,134.27,8.80994492]
[1765164052811,0.1,134.29,134.28,16.308864]
[1765164052993,0.1,134.29,134.28,28.61130968]
[1765164053899,0.1,134.29,134.28,44.15838]
[1765164054991,0.82,134.29,134.28,44.15838]
[1765164055198,0.1,134.29,134.28,44.15838]
[1765164055405,0.82,134.29,134.28,35.34843508]
[1765164056106,0.1,134.29,134.28,35.34843508]
[1765164056418,0.1,134.29,134.28,44.86838]
[1765164056824,0.1,134.29,134.28,106.35838]
[1765164061112,0.1,134.29,134.28,107.06838]
[1765164062031,0.65,134.34,134.31,32.56427091]
[1765164062215,0.65,134.34,134.33,3.39244568]
[1765164063040,0.1,134.35,134.33,12.2023906]
[1765164063221,0.1,134.35,134.34,11.59244568]
[1765164063531,0.1,134.35,134.34,89.84618991]
[1765164064426,0.1,134.35,134.34,90.55618991]
[1765164064823,0.1,134.35,134.34,106.86505391]
[1765164065212,0.65,134.4,134.37,16.308864]
[1765164065413,0.65,134.4,134.39,3.39244568]
[1765164065829,0.65,134.4,134.38,11.59244568]
[1765164066030,0.65,134.4,134.38,8.2]
[1765164066814,8.09053391,134.4,134.38,8.2]
[1765164067011,0.65,134.39,134.38,8.2]
[1765164067216,0.65,134.39,134.37,8.2]
[1765164067812,8.09130417,134.39,134.37,8.2]
[1765164068216,0.65,134.38,134.37,8.2]
[1765164068422,0.65,134.38,134.35,8.2]
[1765164069913,0.65,134.38,134.35,15.6432218]
[1765164070114,11.48429095,134.38,134.32,3.39244568]
[1765164070335,11.48429095,134.38,134.33,7.44433248]
[1765164070637,0.65,134.37,134.34,19.0361128]
[1765164070820,0.65,134.37,134.35,10.83537717]
[1765164071026,0.65,134.39,134.36,4.10244568]
[1765164071220,0.65,134.41,134.38,3.39244568]
[1765164071418,0.65,134.4,134.38,3.39244568]
[1765164072418,0.65,134.4,134.39,3.39244568]
[1765164072744,0.65,134.42,134.39,10.97440143]